[Event "26th Hit Open-A 2022"]
[Site "Nova Gorica"]
[Date "2022.09.21"]
[Round "8.5"]
[White "Lodici, Lorenzo"]
[Black "Marn, Jan"]
[Result "0-1"]
[ECO "C29"]
[WhiteElo "2559"]
[BlackElo "2307"]
[Annotator "TA"]
[PlyCount "48"]
[EventDate "2022.09.16"]
[EventType "swiss"]
[EventCountry "SLO"]
[SourceTitle "playchess.com"]
[Source "ChessBase"]
[SourceQuality "1"]
[TimeControl "5400+30"]

{[%evp 13,48,-31,-19,-36,-33,-39,-27,-23,-29,-30,-20,-42,-14,-20,-6,-1,0,-8,9,-64,-63,-80,-79,-81,-68,-375,-369,-483,-471,-471,-244,-662,-680,-1102,-928,-29997,-29998]} 1. e4 {[%emt 0:00:17]} e5 {[%emt 0:00:08]} 2. Nc3 {[%emt 0:00:07]} Nf6 {[%emt 0:00:06]} 3. f4 {[%emt 0:00:04]} d5 {[%emt 0:00:06]} 4. fxe5 {[%emt 0:00:05]} Nxe4 {[%emt 0:00:10]} 5. Qf3 {[%emt 0:00:03]} f5 {[%emt 0:01:15]} 6. d3 {[%emt 0:00:06]} Nxc3 {[%emt 0:00:04]} 7. bxc3 {[%emt 0:00:04]} d4 $1 {[%emt 0:00:06]} 8. Qg3 {[%emt 0:01:08] C29: Vienna Game: 2...Nf6 3 f4.} Nc6 {[%emt 0:00:06]} 9. Be2 {[%emt 0:00:05]} Be6 {[%emt 0:00:51]} (9... dxc3 10. Bh5+ Kd7 11. Bf7 $18) 10. Bf3 {[%emt 0:00:05] Black has an edge. 10.c4 gains popularity.} Qd7 {[%emt 0:08:28]} (10... dxc3 11. Bxc6+ bxc6 12. Ne2 $11) 11. c4 {[%emt 0:05:27] [#]} Nb4 $146 {[%emt 0:14:01]} ({Predecessor:} 11... O-O-O 12. Rb1 h6 13. h4 Bc5 14. Nh3 Bxc4 15. dxc4 d3 16. Bd5 dxc2 17. Rb2 Rde8 {1-0 (58) Krastev,A (2402)-Sonis,F (2539) Corte 2022}) 12. Bd1 {[%emt 0:02:11]} O-O-O {[%emt 0:00:21]} 13. h4 {[%emt 0:07:10]} Bc5 {[%emt 0:14:49][%cal Oe6c4]} 14. Nf3 {[%emt 0:10:24]} g6 {[%emt 0:10:44]} 15. Bh6 {[%emt 0:08:21]} Bxc4 {[%emt 0:20:04]} 16. dxc4 {[%emt 0:16:30]} (16. a3 $11) 16... d3 $36 {[%emt 0:00:05][%mdl 2048] Black has some pressure. Black is more active.} 17. c3 {[%emt 0:00:19]} Nc2+ {[%emt 0:01:02]} 18. Bxc2 {[%emt 0:00:25]} dxc2 {[%emt 0:00:03]} 19. Bd2 $2 {[%emt 0:04:11][%mdl 8192] [#] Now White is beyond hope.} ({White must play} 19. Nd2 $15) 19... h6 $1 $19 {[%emt 0:11:11] ...Qd3 is the strong threat.} ({Worse is} 19... Qd3 20. Qf4 $17) 20. Rh3 {[%emt 0:28:19]} g5 {[%emt 0:04:10] Prevents Qf4.} 21. hxg5 {[%emt 0:03:24]} hxg5 {[%emt 0:00:05]} (21... f4 $142 22. Qh4 (22. Qxf4 $2 Rhf8 $19) 22... Rhe8 23. Qxf4 Rf8) 22. Qxg5 {[%emt 0:06:27] [#]} (22. Rxh8 Rxh8 23. Ke2) 22... Rhg8 $1 {[%emt 0:01:17][%cal Bh8g8,Bg8g2,Bg2g1][%mdl 96] Deflection} 23. Qf6 {[%emt 0:02:48]} Rxg2 {[%emt 0:00:22][%cal Og2g1] ( -> ...Rg1+!)} 24. Rh8 {[%emt 0:00:23] [#]} Rg1+ $1 {[%emt 0:00:11][%mdl 576] Skewer.  Weighted Error Value: White=1.14/Black=0.25 (precise)} 0-1

[Event "26th Hit Open-A 2022"]
[Site "Nova Gorica"]
[Date "2022.09.21"]
[Round "8.6"]
[White "Seo, Jung Min"]
[Black "Brilej, Jaka"]
[Result "1-0"]
[ECO "D02"]
[WhiteElo "2516"]
[BlackElo "2329"]
[Annotator "TA"]
[PlyCount "95"]
[EventDate "2022.09.16"]
[EventType "swiss"]
[EventCountry "SLO"]
[SourceTitle "playchess.com"]
[Source "ChessBase"]
[SourceQuality "1"]
[TimeControl "5400+30"]

{[%evp 9,95,24,29,7,25,2,8,0,7,1,12,1,5,0,16,15,14,12,18,22,56,55,49,48,40,45,119,119,163,104,125,126,129,133,197,143,155,154,153,159,157,162,160,148,156,148,156,146,168,171,168,168,183,153,144,118,175,160,225,210,249,191,225,227,331,304,392,401,410,398,395,398,556,560,552,550,547,539,462,321,379,381,361,352,712,680,1100,1004]} 1. Nf3 {[%emt 0:00:02]} d5 {[%emt 0:00:23]} 2. g3 {[%emt 0:00:04]} g6 {[%emt 0:01:25]} 3. Bg2 {[%emt 0:01:04]} Bg7 {[%emt 0:00:08]} 4. d4 {[%emt 0:00:41]} c6 {[%emt 0:00:48]} 5. O-O {[%emt 0:00:32]} Nf6 {[%emt 0:00:39]} 6. a4 {[%emt 0:10:11] D02: 1 d4 d5 2 Nf3 sidelines, including 2...Nf6 3 g3 and 2...Nf6 3 Bf4.} a5 {[%emt 0:00:37]} 7. Re1 {[%emt 0:00:54]} O-O {[%emt 0:01:16]} 8. Nbd2 {[%emt 0:00:55] The position is equal.} Bf5 {[%emt 0:04:53]} 9. c3 {[%emt 0:00:26]} Nbd7 {[%emt 0:02:05]} 10. Nh4 {[%emt 0:02:10]} Be6 {[%emt 0:00:13]} 11. e4 {[%emt 0:05:45]} dxe4 {[%emt 0:00:13]} 12. Nxe4 {[%emt 0:00:02]} Nxe4 {[%emt 0:00:08]} (12... Re8 {looks sharper.} 13. Ng5 Bd5 14. Bf1 h6) 13. Bxe4 {[%emt 0:00:03]} Nf6 {[%emt 0:07:19]} 14. Bg2 {[%emt 0:00:13][%cal Oe1e6] [#]} Qb6 $146 {[%emt 0:00:51]} ({Predecessor:} 14... Bd5 15. Bh3 Re8 16. Qe2 Bb3 {½-½ (47) Richter,C (2330)-Wolter,K (2238) Germany 2013}) 15. Nf3 {[%emt 0:05:56][%cal Oe1e6]} Rad8 {[%emt 0:06:35] [#]} 16. Rxe6 $1 {[%emt 0:16:14]} fxe6 {[%emt 0:00:12]} 17. Qe2 {[%emt 0:01:01]} e5 {[%emt 0:14:42]} (17... Nd5 $14) 18. Nxe5 $16 {[%emt 0:10:48]} Qc7 {[%emt 0:07:18]} 19. Nd3 {[%emt 0:06:29]} ({White should try} 19. Bh3 $18) 19... e6 {[%emt 0:06:06]} 20. Qxe6+ {[%emt 0:01:12]} Kh8 {[%emt 0:00:57]} 21. Bf4 {[%emt 0:01:32]} Qc8 {[%emt 0:01:45]} (21... Qb6 $16 {was called for.} 22. Rd1 Rde8) 22. Nc5 {[%emt 0:03:34]} (22. Qxc8 $18 Rxc8 23. Ra3) 22... b6 {[%emt 0:03:17]} 23. Qxc8 {[%emt 0:00:37] White has more active pieces.} Rxc8 {[%emt 0:00:06]} 24. Ne6 {[%emt 0:00:05]} Rf7 {[%emt 0:00:07]} 25. Be5 {[%emt 0:08:35]} Re7 {[%emt 0:06:27]} 26. Nxg7 {[%emt 0:01:33]} Kxg7 {[%emt 0:00:06]} 27. Ra3 {[%emt 0:11:14]} Kf7 {[%emt 0:10:10]} 28. Bh3 {[%emt 0:00:17] This bishop pair is nice.} Rce8 {[%emt 0:03:00] [#]} 29. Rb3 $1 {[%emt 0:00:42]} Nd5 {[%emt 0:00:40]} 30. Bg2 {[%emt 0:00:13]} Re6 {[%emt 0:00:57]} 31. f4 {[%emt 0:00:31]} Rd8 {[%emt 0:00:50]} 32. Kf2 {[%emt 0:00:59]} Kf8 {[%emt 0:00:39]} (32... b5 $16 {is a better defense.}) 33. Be4 {[%emt 0:00:40]} Kf7 {[%emt 0:00:25]} (33... b5 $16 34. axb5 a4) 34. Kf3 {[%emt 0:00:09]} Kf8 {[%emt 0:00:32]} 35. h3 {[%emt 0:01:15][%cal Bh2h3,Bh3h4][%mdl 32]} Kf7 {[%emt 0:00:06]} 36. g4 {[%emt 0:00:47]} Kf8 {[%emt 0:00:38]} (36... b5 $142 37. Ra3 (37. axb5 a4 $16) 37... b4 38. cxb4 Nxb4) 37. h4 {[%emt 0:03:00]} Kf7 {[%emt 0:00:05]} 38. f5 {[%emt 0:01:06]} gxf5 {[%emt 0:01:20]} 39. Bxf5 {[%emt 0:00:04]} Rh6 {[%emt 0:00:05]} 40. Kg3 {[%emt 0:00:42]} Ne7 {[%emt 0:00:51]} 41. Rxb6 {[%emt 0:03:20]} Nxf5+ {[%emt 0:00:10]} 42. gxf5 $18 {[%emt 0:00:02][%mdl 4096] Endgame KRR-KRB} Rg8+ {[%emt 0:00:07]} 43. Kh3 {[%emt 0:00:07]} Rg1 {[%emt 0:00:19]} 44. Rb7+ {[%emt 0:00:15]} Ke8 {[%emt 0:00:06]} 45. b4 {[%emt 0:02:55]} axb4 {[%emt 0:00:06]} 46. cxb4 {[%emt 0:00:04]} Rh1+ $2 {[%emt 0:00:08]} (46... Rf1 47. Kg4 Rg1+ 48. Kf3 Rf1+ 49. Ke2 Ra1) 47. Kg2 {[%emt 0:01:07]} R6xh4 {[%emt 0:00:08]} 48. f6 {[%emt 0:00:20] Weighted Error Value: White=0.13 (very precise) /Black=0.30} 1-0

[Event "26th Hit Open-A 2022"]
[Site "Nova Gorica"]
[Date "2022.09.21"]
[Round "8.7"]
[White "Subelj, Jan"]
[Black "Fercec, Nenad"]
[Result "1-0"]
[ECO "B90"]
[WhiteElo "2505"]
[BlackElo "2403"]
[Annotator "TA"]
[PlyCount "57"]
[EventDate "2022.09.16"]
[EventType "swiss"]
[EventCountry "SLO"]
[SourceTitle "playchess.com"]
[Source "ChessBase"]
[SourceQuality "1"]
[TimeControl "5400+30"]

{[%evp 10,57,17,-18,60,8,23,27,20,17,26,15,42,32,38,37,109,72,68,79,83,76,288,287,262,-54,24,6,41,-65,-73,-300,73,59,76,35,80,45,70,0,0,0,167,126,447,428,1185,1123,970,945]} 1. e4 {[%emt 0:00:11]} c5 {[%emt 0:00:08]} 2. Nf3 {[%emt 0:00:35]} d6 {[%emt 0:00:09]} 3. d4 {[%emt 0:01:18]} cxd4 {[%emt 0:00:36]} 4. Nxd4 {[%emt 0:00:27]} Nf6 {[%emt 0:00:09]} 5. Nc3 {[%emt 0:00:29]} a6 {[%emt 0:00:36]} 6. Rg1 {[%emt 0:02:12]} h5 {[%emt 0:02:23] B90: Sicilian Najdorf: Unusual White 6th moves, 6 Be3 Ng4 and 6 Be3 e5.} (6... b5 $11) 7. Be3 {[%emt 0:02:36]} (7. Bg5 $1 $14) 7... Ng4 {[%emt 0:06:28] [#]} 8. Bg5 $146 {[%emt 0:00:55]} ({Predecessor:} 8. Bf4 e5 9. h3 Nf6 10. Bg5 exd4 11. Qxd4 Nc6 12. Qe3 Be7 13. O-O-O Qa5 14. Kb1 {0-1 (41) Filek,M (1932)-Milanollo,M (2053) Playchess.com INT 2020}) 8... Nxh2 {[%emt 0:02:58] White has an edge.} 9. Bc4 {[%emt 0:02:17]} Ng4 {[%emt 0:00:09]} 10. Qd2 {[%emt 0:02:30]} (10. Qf3 f6 11. Be3 Nc6 $15) 10... Nd7 {[%emt 0:16:32]} 11. O-O-O {[%emt 0:06:25]} (11. Qf4 $2 Nde5 12. Bb3 f6 $19) 11... Qc7 {[%emt 0:01:33]} 12. Bb3 {[%emt 0:05:52] Black must now prevent Nd5.} e6 {[%emt 0:05:48] Inhibits Nd5.} (12... Nc5 $14) 13. Bxe6 {[%emt 0:09:10]} fxe6 {[%emt 0:00:17]} 14. Nxe6 {[%emt 0:00:07]} Qa5 {[%emt 0:06:27]} 15. f4 {[%emt 0:00:29][%mdl 1024] Against Nde5. Rge1 is the strong threat. White has strong compensation.} Kf7 $2 {[%emt 0:12:00]} (15... Ndf6 $16 16. Nxf8 Rxf8) 16. Bd8 $1 $18 {[%emt 0:04:12]} b6 {[%emt 0:01:01] [#]} 17. Nc7 {[%emt 0:15:46]} ({White has to play} 17. Qd4 $1 $18) 17... Rb8 {[%emt 0:08:53]} (17... Bb7 18. Nxa8 Bxa8 19. e5 $16) (17... Ra7 $1 $15) 18. e5 $11 {[%emt 0:01:26]} ({Avoid the trap} 18. Qd4 $2 Qc5 19. Bh4 Qxd4 20. Rxd4 Nc5 $19) 18... Nc5 {[%emt 0:02:52] Prevents e6+.} 19. exd6 {[%emt 0:01:39]} (19. Qd4 $2 Bf5 20. Bg5 dxe5 21. fxe5 Kg8 $19) (19. f5 $14 Bxf5 20. Rgf1) 19... Bf5 $1 $15 {[%emt 0:00:49]} 20. Bg5 {[%emt 0:02:50] [#]} (20. Be7 $17) 20... Nf6 $2 {[%emt 0:07:53]} ({And not} 20... Kg6 21. Qd4 $15) (20... Nd3+ $1 $19 {[%mdl 512]} 21. cxd3 (21. Kb1 Bxd6) 21... Bxd6) 21. Qe2 $16 {[%emt 0:04:15]} Ncd7 {[%emt 0:06:46]} 22. Rge1 {[%emt 0:06:40][%cal Bg1e1,Be1e5,Be5f5][%mdl 32] Strongly threatening Bxf6. White is much more active. The black rooks are badly placed.} (22. Bxf6 $5 Nxf6 23. Rge1 $11) 22... Kg6 {[%emt 0:04:06]} 23. Bxf6 {[%emt 0:03:16]} Nxf6 {[%emt 0:00:25]} 24. Qf1 {[%emt 0:00:08]} (24. Qf2 $1 $14 Bg4 25. Re5) 24... b5 $1 $11 {[%emt 0:03:08][%cal Of8d6] And now ...Bxd6! would win.} 25. Re5 {[%emt 0:00:42][%cal Oe5f5] Threatens to win with Rxf5!} Bxd6 $2 {[%emt 0:02:48] [#]} 26. Rxf5 $1 $18 {[%emt 0:00:08] Dancing on a razor blade.} ({Don't blunder} 26. Rxd6 $2 Qxc7 27. Rxa6 Rhd8 $19) 26... Bxc7 $4 {[%emt 0:01:16][%mdl 8192] [#]} (26... Qxc7 $16 27. Qd3 Kf7) 27. Qd3 $1 {[%emt 0:00:49] Threatening mate with Rg5+. White is clearly winning.} Kf7 {[%emt 0:01:12]} (27... Kh6 $2 28. g4 Bxf4+ 29. Rxf4) (27... Rhd8 $142 28. Rg5+ Kf7 29. Qg6+ Ke6 30. f5+ Ke5 31. Re1+ Kd6) 28. Qd7+ {[%emt 0:00:59]} Kf8 {[%emt 0:00:13]} 29. Nd5 {[%emt 0:00:29] Weighted Error Value: White=0.34/Black=0.66} 1-0

[Event "26th Hit Open-A 2022"]
[Site "Nova Gorica"]
[Date "2022.09.21"]
[Round "8.8"]
[White "Schreiner, Peter"]
[Black "Diermair, Andreas"]
[Result "1/2-1/2"]
[WhiteElo "2405"]
[BlackElo "2468"]
[Annotator "TA"]
[PlyCount "32"]
[EventDate "2022.09.16"]
[EventType "swiss"]
[EventCountry "SLO"]
[SourceTitle "playchess.com"]
[Source "ChessBase"]
[SourceQuality "1"]
[TimeControl "5400+30"]

{[%evp 15,16,8,6]} 1. e4 {[%emt 0:01:25]} c5 {[%emt 0:00:03]} 2. Nf3 {[%emt 0:00:36]} d6 {[%emt 0:00:05]} 3. d4 {[%emt 0:00:07]} cxd4 {[%emt 0:00:05]} 4. Nxd4 {[%emt 0:00:05]} Nf6 {[%emt 0:00:06]} 5. Nc3 {[%emt 0:00:05]} a6 {[%emt 0:00:18]} 6. Bd3 {[%emt 0:00:22]} e5 {[%emt 0:00:35]} 7. Nde2 {[%emt 0:00:10]} Be7 {[%emt 0:00:11]} 8. O-O {[%emt 0:00:06]} O-O {[%emt 0:00:08] [#]} {Predecessor:} 9. Ng3 $146 {B90: Sicilian Najdorf: Unusual White 6th moves, 6 Be3 Ng4 and 6 Be3 e5.} Be6 10. Nd5 Bxd5 11. exd5 g6 12. a4 Nbd7 13. a5 b5 14. c4 b4 15. Bc2 Qc7 16. b3 Nc5 {1-0 (35) Shevchenko,K (2652)-Volokitin,A (2687) Germany 2022} 1/2-1/2

[Event "26th Hit Open-A 2022"]
[Site "Nova Gorica"]
[Date "2022.09.21"]
[Round "8.9"]
[White "Kaasen, Tor Fredrik"]
[Black "Stevanic, David"]
[Result "1-0"]
[ECO "D37"]
[WhiteElo "2442"]
[BlackElo "2261"]
[Annotator "TA"]
[PlyCount "113"]
[EventDate "2022.09.16"]
[EventType "swiss"]
[EventCountry "SLO"]
[SourceTitle "playchess.com"]
[Source "ChessBase"]
[SourceQuality "1"]
[TimeControl "5400+30"]

{[%evp 14,113,16,9,39,35,29,16,56,60,49,45,62,61,72,72,83,54,58,72,74,28,20,32,31,0,11,-11,45,18,45,0,0,0,7,0,0,0,0,-17,-12,-129,-37,-37,-37,-37,-37,-65,-8,-16,0,-185,0,0,0,0,0,0,0,0,0,0,0,0,0,0,0,0,8,8,8,0,8,0,8,0,0,0,122,122,122,122,122,122,122,122,1484,374,1339,1222,4578,4072,29969,29970,29970,29970,29979,29981,29983,29982,29982,29983]} 1. d4 {[%emt 0:03:41]} Nf6 {[%emt 0:01:29]} 2. c4 {[%emt 0:00:42]} e6 {[%emt 0:00:05]} 3. Nf3 {[%emt 0:00:29]} d5 {[%emt 0:00:24]} 4. Nc3 {[%emt 0:00:26]} Be7 {[%emt 0:00:28]} 5. Bf4 {[%emt 0:00:44]} c6 {[%emt 0:01:14]} 6. e3 {[%emt 0:03:15]} O-O {[%emt 0:00:13]} 7. h3 {[%emt 0:01:17]} Nbd7 {[%emt 0:01:13]} 8. a3 {[%emt 0:03:38]} dxc4 {[%emt 0:06:19] D37: Queen's Gambit Declined: 5 Bf4.} 9. Bxc4 {[%emt 0:00:35]} b5 {[%emt 0:00:03]} 10. Be2 {[%emt 0:08:45] [#]} b4 $146 {[%emt 0:03:43] The position is equal.} ({Predecessor:} 10... Bb7 11. O-O a6 12. b4 a5 13. Qb3 Nd5 14. Nxd5 exd5 15. Rfc1 Nb6 16. bxa5 Rxa5 {1-0 (42) Rakhimzhan,A (1801)-Khuslen,A (1651) Ulaanbaatar 2015}) 11. axb4 {[%emt 0:01:53]} Bxb4 {[%emt 0:00:03]} 12. Qc2 {[%emt 0:02:34]} a5 {[%emt 0:10:23]} 13. O-O {[%emt 0:00:49]} Ba6 {[%emt 0:00:05]} 14. Bxa6 {[%emt 0:05:19]} Rxa6 {[%emt 0:00:03]} 15. Rfd1 {[%emt 0:00:17] White has more active pieces. The black rooks are badly placed.} Qe7 {[%emt 0:09:06]} 16. e4 {[%emt 0:04:45]} Rfa8 {[%emt 0:09:35]} 17. Rac1 {[%emt 0:05:56]} (17. Bg3 $16) 17... Bxc3 $11 {[%emt 0:04:11]} 18. bxc3 {[%emt 0:01:02]} c5 {[%emt 0:00:27]} 19. Bg5 {[%emt 0:07:42] Strongly threatening e5.} h6 {[%emt 0:03:09]} 20. Bh4 {[%emt 0:02:36]} e5 {[%emt 0:06:04]} (20... Qe8 $11) 21. Bxf6 {[%emt 0:03:30]} (21. d5 {is interesting.} a4 22. c4 Qd6 23. Ra1) 21... Rxf6 {[%emt 0:04:47]} (21... Qxf6 {feels hotter.} 22. Qa4 Qe7 23. d5 Nb6) 22. Nxe5 {[%emt 0:02:00]} Nxe5 {[%emt 0:00:31]} 23. dxe5 {[%emt 0:00:08]} Qxe5 {[%emt 0:01:19]} 24. Rd5 {[%emt 0:00:15]} Qf4 {[%emt 0:10:04]} 25. Rcd1 {[%emt 0:08:49]} Re6 {[%emt 0:07:30]} 26. Re1 {[%emt 0:08:39]} a4 {[%emt 0:04:46][%cal Ba5a4,Ba4a3][%mdl 32]} 27. g3 {[%emt 0:04:28]} (27. Rxc5 $11 {was the only way to keep the balance.} a3 28. Rc4) 27... Qc7 {[%emt 0:00:26]} (27... Qb8 $1 $17 {And now ...a3 would win.} 28. Ra1 a3) 28. Ra1 $15 {[%emt 0:02:54]} a3 {[%emt 0:00:35] aiming for ...Rb6.} 29. c4 $1 {[%emt 0:01:43]} Qa5 30. Kg2 {[%emt 0:01:05]} Qb4 (30... a2 $15) 31. Rd3 $11 {[%emt 0:06:41]} Ra4 {[%emt 0:07:18][%cal Ba8a4,Ba4c4,Bc4c2][%mdl 32]} 32. f3 $2 {[%emt 0:01:06]} (32. Rd8+ $11 {and White has nothing to worry.} Kh7 33. Rd7) 32... Qxc4 $2 {[%emt 0:08:44]} (32... Rb6 $1 $19 {...Qb2 is the strong threat.} 33. Ra2 (33. Rd8+ $2 Kh7 $17) 33... Qb2 $3 {[%mdl 512]}) 33. Qxc4 {[%emt 0:02:33]} Rxc4 $19 {[%emt 0:00:02][%mdl 4096] Endgame KRR-KRR} 34. g4 {[%emt 0:00:30]} Rc2+ {[%emt 0:01:18]} 35. Kg3 {[%emt 0:00:05]} Ra6 {[%emt 0:01:47] Threatens to win with ...a2.} 36. Raxa3 {[%emt 0:00:36]} Rxa3 {[%emt 0:00:07]} 37. Rxa3 $11 {[%emt 0:00:03] KR-KR} g5 {[%emt 0:00:04]} 38. h4 {[%emt 0:00:36]} gxh4+ {[%emt 0:00:39]} 39. Kxh4 {[%emt 0:00:10]} c4 {[%emt 0:00:12]} 40. Kg3 {[%emt 0:02:02]} Kg7 {[%emt 0:00:31]} 41. Kf4 {[%emt 0:00:09]} Rc1 {[%emt 0:00:26]} 42. Kf5 {[%emt 0:01:08]} Rb1 {[%emt 0:01:22]} 43. f4 {[%emt 0:01:58][%cal Bf3f4,Bf4f5][%mdl 32]} Rb6 {[%emt 0:00:24]} 44. e5 {[%emt 0:00:39]} Rc6 {[%emt 0:00:27]} 45. Rc3 {[%emt 0:00:17]} Kf8 {[%emt 0:00:51]} (45... Rc8 $11 {remains equal.}) 46. Ke4 $16 {[%emt 0:00:15]} Rg6 {[%emt 0:00:04] [#]} 47. Kf3 $1 {[%emt 0:00:45]} ({Much less strong is} 47. Rxc4 Rxg4 48. Rc6 h5 $14) 47... Rc6 {[%emt 0:00:16] [#]} 48. f5 $1 {[%emt 0:00:08]} Kg7 {[%emt 0:00:30]} 49. Ke4 {[%emt 0:00:06] Hoping for Kd4.} h5 $2 {[%emt 0:00:36][%mdl 8192] This costs Black the game.} (49... Rc8 $16 50. Kd4 Rd8+ 51. Ke4 (51. Kxc4 Rd1 $16) 51... Rd1) 50. Kd5 $2 {[%emt 0:01:00]} (50. gxh5 Rc8 51. Kd5 Rd8+ 52. Kxc4) 50... Rc8 $2 {[%emt 0:00:15]} (50... Rh6 51. Rh3 (51. Rxc4 hxg4 52. Rxg4+ Kf8 $16) 51... Rb6 52. f6+ (52. Rxh5 c3 $14) 52... Kg6) 51. gxh5 $18 {[%emt 0:00:24]} Rh8 {[%emt 0:01:01]} 52. Rg3+ {[%emt 0:01:22]} Kh6 {[%emt 0:00:29]} 53. e6 {[%emt 0:00:11] White mates.} fxe6+ {[%emt 0:00:21]} 54. fxe6 {[%emt 0:00:11]} Rc8 {[%emt 0:00:26]} 55. e7 {[%emt 0:00:55]} Re8 {[%emt 0:01:01]} 56. Ke6 {[%emt 0:00:12]} Ra8 {[%emt 0:00:33]} 57. Kf7 {[%emt 0:00:07] Weighted Error Value: White=0.30/Black=0.30} 1-0